[Event "RUS-ch Men Blitz 2019"]
[Site "Sochi"]
[Date "2019.10.17"]
[Round "9.15"]
[White "Yuffa, Daniil"]
[Black "Ulybin, Mikhail"]
[Result "1-0"]
[ECO "A90"]
[WhiteElo "2577"]
[BlackElo "2455"]
[Annotator "ChessBase"]
[PlyCount "57"]
[EventDate "2019.10.17"]
[EventType "swiss"]
[EventCountry "RUS"]
[SourceTitle "playchess.com"]
[Source "ChessBase"]
[SourceQuality "1"]
[TimeControl "180+2"]

1. d4 {[%emt 0:00:00]} e6 {[%emt 0:00:01]} 2. c4 {[%emt 0:00:00]} f5 {[%emt 0:00:03]} 3. g3 {[%emt 0:00:01]} Nf6 {[%emt 0:00:03]} 4. Bg2 {[%emt 0:00:01]} d5 {[%emt 0:00:03]} 5. Nf3 {[%emt 0:00:01]} Bd6 {[%emt 0:00:03]} 6. O-O {[%emt 0:00:02]} c6 {[%emt 0:00:03]} 7. Qc2 {[%emt 0:00:01]} O-O {[%emt 0:00:06]} 8. Nc3 {[%emt 0:00:02]} Qe7 {[%emt 0:00:11]} 9. Rb1 {[%emt 0:00:02]} b6 {[%emt 0:00:29]} 10. Ne5 {[%emt 0:00:39]} Bb7 {[%emt 0:00:20]} 11. cxd5 {[%emt 0:00:11]} exd5 {[%emt 0:00:24]} 12. Qxf5 {[%emt 0:00:18]} Nfd7 {[%emt 0:00:15]} 13. Qc2 {[%emt 0:00:27]} Nxe5 {[%emt 0:00:08]} 14. dxe5 {[%emt 0:00:01]} Bxe5 {[%emt 0:00:03]} 15. e4 {[%emt 0:00:02]} d4 {[%emt 0:00:17]} 16. f4 {[%emt 0:00:31]} dxc3 {[%emt 0:00:37]} 17. fxe5 {[%emt 0:00:07]} Qc5+ {[%emt 0:00:07]} 18. Kh1 {[%emt 0:00:05]} Rxf1+ {[%emt 0:00:04]} 19. Bxf1 {[%emt 0:00:01]} Qxe5 {[%emt 0:00:08]} 20. Bf4 {[%emt 0:00:07]} Qf6 {[%emt 0:00:03]} 21. Bc4+ {[%emt 0:00:06]} Kh8 {[%emt 0:00:02]} 22. Qxc3 {[%emt 0:00:07]} Qxc3 {[%emt 0:00:04]} 23. bxc3 {[%emt 0:00:02]} Nd7 {[%emt 0:00:02]} 24. e5 {[%emt 0:00:06]} Re8 {[%emt 0:00:05]} 25. Rd1 {[%emt 0:00:07]} Nf8 {[%emt 0:00:05]} 26. Bf7 {[%emt 0:00:17]} Re7 {[%emt 0:00:03]} 27. e6 {[%emt 0:00:01]} c5+ {[%emt 0:00:01]} 28. Kg1 {[%emt 0:00:01]} h6 {[%emt 0:00:02]} 29. Rd8 {[%emt 0:00:02]} 1-0

[Event "RUS-ch Men Blitz 2019"]
[Site "Sochi"]
[Date "2019.10.17"]
[Round "9.16"]
[White "Oganian, Miran"]
[Black "Popov, Valerij"]
[Result "1-0"]
[ECO "E04"]
[WhiteElo "2436"]
[BlackElo "2535"]
[Annotator "ChessBase"]
[PlyCount "100"]
[EventDate "2019.10.17"]
[EventType "swiss"]
[EventCountry "RUS"]
[SourceTitle "playchess.com"]
[Source "ChessBase"]
[SourceQuality "1"]
[TimeControl "180+2"]

1. d4 {[%emt 0:00:00]} d5 {[%emt 0:00:00]} 2. c4 {[%emt 0:00:00]} e6 {[%emt 0:00:00]} 3. Nf3 {[%emt 0:00:01]} Nf6 {[%emt 0:00:01]} 4. g3 {[%emt 0:00:01]} dxc4 {[%emt 0:00:01]} 5. Bg2 {[%emt 0:00:01]} a6 {[%emt 0:00:01]} 6. Ne5 {[%emt 0:00:03]} Bb4+ {[%emt 0:00:01]} 7. Bd2 {[%emt 0:00:25]} Qxd4 {[%emt 0:00:02]} 8. Bxb4 {[%emt 0:00:03]} Qxe5 {[%emt 0:00:01]} 9. Na3 {[%emt 0:00:29]} Nc6 {[%emt 0:00:36]} 10. Bc3 {[%emt 0:00:16]} Qc5 {[%emt 0:00:08]} 11. Qa4 {[%emt 0:00:19]} Bd7 {[%emt 0:00:18]} 12. Qxc4 {[%emt 0:00:05]} Qxc4 {[%emt 0:00:02]} 13. Nxc4 {[%emt 0:00:01]} O-O-O {[%emt 0:00:20]} 14. Rc1 {[%emt 0:00:09]} Rhg8 {[%emt 0:00:19]} 15. O-O {[%emt 0:00:07]} Nd5 {[%emt 0:00:03]} 16. Bd2 {[%emt 0:00:05]} Nd4 {[%emt 0:00:19]} 17. Rfe1 {[%emt 0:00:19]} Bb5 {[%emt 0:00:01]} 18. e4 {[%emt 0:00:30]} Ne7 {[%emt 0:00:09]} 19. Bf4 {[%emt 0:00:09]} Nec6 {[%emt 0:00:03]} 20. b3 {[%emt 0:00:12]} f6 {[%emt 0:00:22]} 21. Kh1 {[%emt 0:00:13]} e5 {[%emt 0:00:04]} 22. Be3 {[%emt 0:00:01]} Nb4 {[%emt 0:00:02]} 23. a4 {[%emt 0:00:09]} Bc6 {[%emt 0:00:08]} 24. Rb1 {[%emt 0:00:03]} Kb8 {[%emt 0:00:04]} 25. h3 {[%emt 0:00:02]} Rd7 {[%emt 0:00:10]} 26. Kh2 {[%emt 0:00:02]} Rgd8 {[%emt 0:00:01]} 27. Na5 {[%emt 0:00:03]} b6 {[%emt 0:00:07]} 28. Nxc6+ {[%emt 0:00:03]} Ndxc6 {[%emt 0:00:01]} 29. Rec1 {[%emt 0:00:02]} Nd4 {[%emt 0:00:04]} 30. Bf1 {[%emt 0:00:02]} Kb7 {[%emt 0:00:01]} 31. Bc4 {[%emt 0:00:02]} c6 {[%emt 0:00:04]} 32. Kg2 {[%emt 0:00:01]} b5 {[%emt 0:00:01]} 33. Bf1 {[%emt 0:00:02]} Nbc2 {[%emt 0:00:05]} 34. Bd2 {[%emt 0:00:04]} Nxb3 {[%emt 0:00:06]} 35. Rxb3 {[%emt 0:00:03]} Rxd2 {[%emt 0:00:01]} 36. axb5 {[%emt 0:00:01]} axb5 {[%emt 0:00:06]} 37. Rc3 {[%emt 0:00:01]} Nd4 {[%emt 0:00:01]} 38. Ra1 {[%emt 0:00:02]} Ra8 {[%emt 0:00:02]} 39. Rxa8 {[%emt 0:00:03]} Kxa8 {[%emt 0:00:01]} 40. Ra3+ {[%emt 0:00:03]} Kb7 {[%emt 0:00:00]} 41. g4 {[%emt 0:00:01]} g5 {[%emt 0:00:03]} 42. h4 {[%emt 0:00:01]} h6 {[%emt 0:00:00]} 43. h5 {[%emt 0:00:00]} c5 {[%emt 0:00:03]} 44. Ra5 {[%emt 0:00:03]} c4 {[%emt 0:00:01]} 45. Ra3 {[%emt 0:00:03]} Rb2 {[%emt 0:00:01]} 46. Kg1 {[%emt 0:00:03]} b4 {[%emt 0:00:00]} 47. Ra5 {[%emt 0:00:02]} c3 {[%emt 0:00:01]} 48. Bd3 {[%emt 0:00:02]} c2 {[%emt 0:00:01]} 49. Bxc2 {[%emt 0:00:01]} Rxc2 {[%emt 0:00:02]} 50. Rd5 {[%emt 0:00:02]} b3 {[%emt 0:00:01]} 1-0

[Event "RUS-ch Men Blitz 2019"]
[Site "Sochi"]
[Date "2019.10.17"]
[Round "9.17"]
[White "Goltsev, Dmitry"]
[Black "Zakhartsov, Vladimir"]
[Result "0-1"]
[ECO "B85"]
[WhiteElo "2309"]
[BlackElo "2514"]
[Annotator "ChessBase"]
[PlyCount "84"]
[EventDate "2019.10.17"]
[EventType "swiss"]
[EventCountry "RUS"]
[SourceTitle "playchess.com"]
[Source "ChessBase"]
[SourceQuality "1"]
[TimeControl "180+2"]

1. e4 c5 {[%emt 0:00:00]} 2. Nf3 {[%emt 0:00:00]} d6 {[%emt 0:00:00]} 3. d4 {[%emt 0:00:00]} Nf6 {[%emt 0:00:00]} 4. Nc3 {[%emt 0:00:19]} cxd4 {[%emt 0:00:01]} 5. Nxd4 {[%emt 0:00:01]} a6 {[%emt 0:00:00]} 6. Be2 {[%emt 0:00:02]} Nbd7 {[%emt 0:00:08]} 7. O-O {[%emt 0:00:02]} e6 {[%emt 0:00:04]} 8. a4 {[%emt 0:00:08]} b6 {[%emt 0:00:12]} 9. f3 {[%emt 0:00:06]} Bb7 {[%emt 0:00:02]} 10. Be3 {[%emt 0:00:02]} Be7 {[%emt 0:00:02]} 11. Qd2 {[%emt 0:00:04]} O-O {[%emt 0:00:03]} 12. Rfd1 {[%emt 0:00:01]} Qc7 {[%emt 0:00:02]} 13. Rac1 {[%emt 0:00:03]} Rfe8 {[%emt 0:00:14]} 14. Bf1 {[%emt 0:00:02]} Rad8 {[%emt 0:00:07]} 15. Qf2 {[%emt 0:00:24]} Qb8 {[%emt 0:00:05]} 16. Nb3 {[%emt 0:00:05]} Qc7 {[%emt 0:00:26]} 17. Rd2 {[%emt 0:00:08]} Nc5 {[%emt 0:00:03]} 18. Rcd1 {[%emt 0:00:06]} Nfd7 {[%emt 0:00:33]} 19. Nd4 {[%emt 0:00:10]} Ne5 {[%emt 0:00:04]} 20. h3 {[%emt 0:00:06]} Ncd7 {[%emt 0:00:04]} 21. Nb3 {[%emt 0:00:13]} Rb8 {[%emt 0:00:08]} 22. f4 {[%emt 0:00:22]} Nc4 {[%emt 0:00:12]} 23. Bxc4 {[%emt 0:00:06]} Qxc4 {[%emt 0:00:01]} 24. e5 {[%emt 0:00:12]} d5 {[%emt 0:00:01]} 25. Bxb6 {[%emt 0:00:07]} Nxb6 {[%emt 0:00:05]} 26. Qxb6 {[%emt 0:00:03]} Qxf4 {[%emt 0:00:06]} 27. Re2 {[%emt 0:00:10]} Qc4 {[%emt 0:00:09]} 28. Rd4 {[%emt 0:00:07]} Qc8 {[%emt 0:00:01]} 29. Qa5 {[%emt 0:00:23]} Ba8 {[%emt 0:00:20]} 30. Nd1 {[%emt 0:00:02]} Bd8 {[%emt 0:00:07]} 31. Qd2 {[%emt 0:00:10]} Bb6 {[%emt 0:00:02]} 32. c3 {[%emt 0:00:03]} Ba7 {[%emt 0:00:06]} 33. Kh2 {[%emt 0:00:04]} Rxb3 {[%emt 0:00:02]} 34. Rg4 {[%emt 0:00:02]} g6 {[%emt 0:00:18]} 35. Qh6 {[%emt 0:00:03]} Qc7 {[%emt 0:00:11]} 36. Rh4 {[%emt 0:00:08]} f5 {[%emt 0:00:01]} 37. Ne3 {[%emt 0:00:05]} Qxe5+ {[%emt 0:00:02]} 38. Kh1 {[%emt 0:00:02]} Qg7 {[%emt 0:00:04]} 39. Qf4 {[%emt 0:00:02]} Bb8 {[%emt 0:00:03]} 40. Qf1 {[%emt 0:00:03]} Rb7 41. Re1 Rbe7 {[%emt 0:00:04]} 42. Qxa6 {[%emt 0:00:04]} Bg3 {[%emt 0:00:02]} 0-1

[Event "RUS-ch Men Blitz 2019"]
[Site "Sochi"]
[Date "2019.10.17"]
[Round "9.18"]
[White "Tekeyev, Zaur"]
[Black "Potapov, Pavel"]
[Result "0-1"]
[ECO "B31"]
[WhiteElo "2384"]
[BlackElo "2489"]
[Annotator "ChessBase"]
[PlyCount "64"]
[EventDate "2019.10.17"]
[EventType "swiss"]
[EventCountry "RUS"]
[SourceTitle "playchess.com"]
[Source "ChessBase"]
[SourceQuality "1"]
[TimeControl "180+2"]

1. e4 {[%emt 0:00:00]} c5 {[%emt 0:00:00]} 2. Nf3 {[%emt 0:00:01]} Nc6 {[%emt 0:00:00]} 3. Bb5 {[%emt 0:00:04]} g6 {[%emt 0:00:01]} 4. O-O {[%emt 0:00:02]} Bg7 {[%emt 0:00:01]} 5. Re1 {[%emt 0:00:01]} Nf6 {[%emt 0:00:03]} 6. e5 {[%emt 0:00:09]} Nd5 {[%emt 0:00:01]} 7. Nc3 {[%emt 0:00:01]} Nc7 {[%emt 0:00:04]} 8. Bxc6 {[%emt 0:00:01]} dxc6 {[%emt 0:00:02]} 9. Ne4 {[%emt 0:00:03]} b6 {[%emt 0:00:03]} 10. d3 {[%emt 0:00:16]} O-O {[%emt 0:00:05]} 11. h3 {[%emt 0:00:05]} Ne6 {[%emt 0:00:16]} 12. Be3 {[%emt 0:00:03]} f5 {[%emt 0:00:11]} 13. exf6 {[%emt 0:00:07]} exf6 {[%emt 0:00:02]} 14. Qd2 {[%emt 0:00:19]} Re8 {[%emt 0:00:27]} 15. Bh6 {[%emt 0:00:15]} f5 {[%emt 0:00:08]} 16. Nc3 {[%emt 0:00:40]} Bh8 {[%emt 0:00:03]} 17. Re2 {[%emt 0:00:12]} Nd4 {[%emt 0:00:19]} 18. Nxd4 {[%emt 0:00:11]} cxd4 {[%emt 0:00:01]} 19. Rxe8+ {[%emt 0:00:13]} Qxe8 {[%emt 0:00:02]} 20. Re1 {[%emt 0:00:03]} Qf7 {[%emt 0:00:05]} 21. Ne2 {[%emt 0:00:04]} Bd7 {[%emt 0:00:05]} 22. Qf4 {[%emt 0:00:31]} Re8 {[%emt 0:00:17]} 23. Qc7 {[%emt 0:00:03]} Be6 {[%emt 0:00:31]} 24. Qxc6 {[%emt 0:00:13]} Bd5 {[%emt 0:00:02]} 25. Qa4 {[%emt 0:00:05]} Re6 {[%emt 0:00:19]} 26. Kf1 {[%emt 0:00:06]} Qe7 {[%emt 0:00:05]} 27. Qa3 {[%emt 0:00:02]} Qe8 {[%emt 0:00:07]} 28. Qb4 {[%emt 0:00:01]} a5 {[%emt 0:00:16]} 29. Qd2 {[%emt 0:00:01]} Be5 {[%emt 0:00:07]} 30. b3 {[%emt 0:00:03]} Bd6 {[%emt 0:00:04]} 31. Nxd4 {[%emt 0:00:03]} Rxe1+ {[%emt 0:00:02]} 32. Qxe1 {[%emt 0:00:02]} Bxg2+ {[%emt 0:00:01]} 0-1

[Event "RUS-ch Men Blitz 2019"]
[Site "Sochi"]
[Date "2019.10.17"]
[Round "9.19"]
[White "Antipov, Mikhail Al."]
[Black "Skvortsov, Andrei"]
[Result "1-0"]
[ECO "B01"]
[WhiteElo "2567"]
[BlackElo "2139"]
[Annotator "ChessBase"]
[PlyCount "50"]
[EventDate "2019.10.17"]
[EventType "swiss"]
[EventCountry "RUS"]
[SourceTitle "playchess.com"]
[Source "ChessBase"]
[SourceQuality "1"]
[TimeControl "180+2"]

1. e4 {[%emt 0:00:00]} d5 {[%emt 0:00:07]} 2. exd5 Qxd5 3. Nc3 {[%emt 0:00:02]} Qd8 {[%emt 0:00:01]} 4. d4 {[%emt 0:00:02]} Nf6 {[%emt 0:00:01]} 5. Bc4 {[%emt 0:00:03]} g6 {[%emt 0:00:01]} 6. h3 {[%emt 0:00:06]} Bg7 {[%emt 0:00:04]} 7. Nf3 {[%emt 0:00:02]} a6 {[%emt 0:00:01]} 8. a4 {[%emt 0:00:02]} O-O {[%emt 0:00:02]} 9. O-O {[%emt 0:00:02]} Re8 {[%emt 0:00:04]} 10. Re1 {[%emt 0:00:04]} e6 {[%emt 0:00:01]} 11. Bf4 {[%emt 0:00:07]} b6 {[%emt 0:00:01]} 12. Qe2 {[%emt 0:00:17]} Bb7 {[%emt 0:00:01]} 13. Rad1 {[%emt 0:00:02]} Nc6 {[%emt 0:00:05]} 14. Bg5 {[%emt 0:00:34]} Ne7 {[%emt 0:00:18]} 15. Ne5 {[%emt 0:00:15]} Ned5 {[%emt 0:00:06]} 16. Nxd5 {[%emt 0:00:25]} exd5 {[%emt 0:00:02]} 17. Bd3 {[%emt 0:00:02]} Qd6 {[%emt 0:00:02]} 18. Qf3 {[%emt 0:00:02]} c5 {[%emt 0:00:02]} 19. c3 {[%emt 0:00:02]} cxd4 {[%emt 0:00:02]} 20. cxd4 {[%emt 0:00:02]} Re6 {[%emt 0:00:02]} 21. Qf4 {[%emt 0:00:02]} Rae8 {[%emt 0:00:02]} 22. Re3 {[%emt 0:00:24]} Qb4 {[%emt 0:01:15]} 23. Rde1 {[%emt 0:00:02]} Bc8 {[%emt 0:00:31]} 24. h4 {[%emt 0:00:12]} Qf8 {[%emt 0:00:11]} 25. Qf3 {[%emt 0:00:12]} Nd7 {[%emt 0:00:19]} 1-0

[Event "RUS-ch Men Blitz 2019"]
[Site "Sochi"]
[Date "2019.10.17"]
[Round "9.20"]
[White "Papin, Vasily"]
[Black "Yatzenko, Anton"]
[Result "1-0"]
[ECO "A14"]
[WhiteElo "2481"]
[BlackElo "2383"]
[Annotator "ChessBase"]
[PlyCount "103"]
[EventDate "2019.10.17"]
[EventType "swiss"]
[EventCountry "RUS"]
[SourceTitle "playchess.com"]
[Source "ChessBase"]
[SourceQuality "1"]
[TimeControl "180+2"]

1. c4 {[%emt 0:00:00]} e6 {[%emt 0:00:00]} 2. g3 {[%emt 0:00:00]} d5 {[%emt 0:00:02]} 3. Bg2 {[%emt 0:00:01]} Nf6 {[%emt 0:00:01]} 4. Nf3 {[%emt 0:00:01]} Be7 {[%emt 0:00:05]} 5. O-O {[%emt 0:00:02]} O-O {[%emt 0:00:01]} 6. b3 {[%emt 0:00:04]} dxc4 {[%emt 0:00:18]} 7. bxc4 {[%emt 0:00:01]} c5 {[%emt 0:00:01]} 8. Nc3 {[%emt 0:00:09]} Nc6 {[%emt 0:00:01]} 9. Bb2 {[%emt 0:00:01]} a6 {[%emt 0:00:10]} 10. Rb1 {[%emt 0:00:13]} Qc7 {[%emt 0:00:01]} 11. e3 {[%emt 0:00:02]} Rd8 {[%emt 0:00:05]} 12. Qe2 {[%emt 0:00:01]} b6 {[%emt 0:00:12]} 13. Ba1 {[%emt 0:00:07]} Rb8 {[%emt 0:00:06]} 14. Ne1 {[%emt 0:00:23]} Bb7 {[%emt 0:00:25]} 15. f4 {[%emt 0:00:01]} Na5 {[%emt 0:00:18]} 16. g4 {[%emt 0:00:33]} Bxg2 {[%emt 0:00:14]} 17. Nxg2 {[%emt 0:00:42]} Qd7 {[%emt 0:00:01]} 18. g5 {[%emt 0:00:05]} Ne8 {[%emt 0:00:07]} 19. Ne4 {[%emt 0:00:24]} Qd3 {[%emt 0:00:17]} 20. Qxd3 {[%emt 0:00:01]} Rxd3 {[%emt 0:00:01]} 21. Rfc1 {[%emt 0:00:01]} f5 {[%emt 0:00:37]} 22. gxf6 {[%emt 0:00:07]} gxf6 {[%emt 0:00:01]} 23. Rc2 {[%emt 0:00:30]} Kf7 {[%emt 0:00:24]} 24. Kf1 {[%emt 0:00:01]} Rdd8 {[%emt 0:00:02]} 25. Ke2 {[%emt 0:00:02]} Nd6 {[%emt 0:00:03]} 26. Nxd6+ {[%emt 0:00:06]} Rxd6 {[%emt 0:00:02]} 27. Ne1 {[%emt 0:00:01]} Rg8 {[%emt 0:00:12]} 28. d3 {[%emt 0:00:09]} Bd8 {[%emt 0:00:01]} 29. Kf1 {[%emt 0:00:05]} Nc6 {[%emt 0:00:02]} 30. Bc3 {[%emt 0:00:01]} Ne7 {[%emt 0:00:01]} 31. Rg2 {[%emt 0:00:02]} Nf5 {[%emt 0:00:02]} 32. Rxg8 {[%emt 0:00:01]} Kxg8 {[%emt 0:00:04]} 33. Ke2 {[%emt 0:00:00]} Kf7 {[%emt 0:00:01]} 34. Nf3 {[%emt 0:00:02]} Bc7 {[%emt 0:00:03]} 35. Nd2 {[%emt 0:00:04]} Rd8 {[%emt 0:00:02]} 36. Ne4 {[%emt 0:00:01]} Rg8 {[%emt 0:00:04]} 37. Kf2 {[%emt 0:00:01]} Rg6 {[%emt 0:00:01]} 38. Rb2 {[%emt 0:00:06]} e5 {[%emt 0:00:03]} 39. Nxc5 {[%emt 0:00:03]} exf4 {[%emt 0:00:02]} 40. exf4 {[%emt 0:00:02]} Bxf4 {[%emt 0:00:02]} 41. Nxa6 Bxh2 {[%emt 0:00:03]} 42. Kf3 {[%emt 0:00:04]} Bg1 {[%emt 0:00:03]} 43. Nc7 {[%emt 0:00:01]} Rg3+ {[%emt 0:00:01]} 44. Ke4 {[%emt 0:00:01]} Nd6+ {[%emt 0:00:02]} 45. Kf4 {[%emt 0:00:04]} Rg5 {[%emt 0:00:02]} 46. Nd5 {[%emt 0:00:01]} Bc5 {[%emt 0:00:03]} 47. Re2 {[%emt 0:00:03]} Rf5+ {[%emt 0:00:01]} 48. Kg4 {[%emt 0:00:01]} Rg5+ {[%emt 0:00:01]} 49. Kh3 {[%emt 0:00:00]} Nf5 {[%emt 0:00:01]} 50. Bxf6 {[%emt 0:00:03]} Rh5+ {[%emt 0:00:02]} 51. Kg4 {[%emt 0:00:01]} Kg6 {[%emt 0:00:01]} 52. Nf4+ {[%emt 0:00:01]} 1-0

[Event "RUS-ch Men Blitz 2019"]
[Site "Sochi"]
[Date "2019.10.17"]
[Round "9.21"]
[White "Samusenko, Maksim"]
[Black "Shcherbin, Matvei"]
[Result "1-0"]
[ECO "B40"]
[WhiteElo "2445"]
[BlackElo "2366"]
[Annotator "NA"]
[PlyCount "81"]
[EventDate "2019.10.17"]
[EventType "swiss"]
[EventCountry "RUS"]
[SourceTitle "playchess.com"]
[Source "ChessBase"]
[SourceQuality "1"]
[TimeControl "180+2"]

1. e4 {[%emt 0:00:00]} c5 {[%emt 0:00:00]} 2. Nf3 {[%emt 0:00:00]} e6 {[%emt 0:00:00]} 3. g3 {[%emt 0:00:02]} Nc6 {[%emt 0:00:02]} 4. Bg2 {[%emt 0:00:00]} Nf6 {[%emt 0:00:01]} 5. Qe2 {[%emt 0:00:01]} d6 {[%emt 0:00:11]} 6. O-O {[%emt 0:00:03]} Be7 {[%emt 0:00:00]} 7. Rd1 {[%emt 0:00:15]} O-O {[%emt 0:00:07]} 8. c3 {[%emt 0:00:08]} d5 {[%emt 0:00:10]} 9. e5 {[%emt 0:00:05]} Nd7 {[%emt 0:00:01]} 10. d4 {[%emt 0:00:05]} Rb8 {[%emt 0:00:01]} 11. dxc5 {[%emt 0:00:07]} Bxc5 {[%emt 0:00:14]} 12. Bf4 {[%emt 0:00:13]} b5 {[%emt 0:00:08]} 13. a3 {[%emt 0:00:01]} Nb6 {[%emt 0:00:06]} 14. Nbd2 {[%emt 0:00:05]} Nc4 {[%emt 0:00:06]} 15. Nb3 {[%emt 0:00:01]} Be7 {[%emt 0:00:01]} 16. Nbd4 {[%emt 0:00:11]} Nxd4 {[%emt 0:00:01]} 17. cxd4 {[%emt 0:00:14]} Bd7 {[%emt 0:00:03]} 18. h4 {[%emt 0:00:11]} h6 {[%emt 0:00:23]} 19. Nh2 {[%emt 0:00:13]} Rc8 {[%emt 0:00:17]} 20. Rab1 {[%emt 0:00:10]} f5 {[%emt 0:00:03]} 21. exf6 {[%emt 0:00:02]} Bxf6 {[%emt 0:00:01]} 22. Nf3 {[%emt 0:00:09]} Re8 {[%emt 0:00:15]} 23. Rbc1 {[%emt 0:00:07]} Qb6 {[%emt 0:00:01]} 24. Ne5 {[%emt 0:00:02]} Nxe5 {[%emt 0:00:06]} 25. Bxe5 {[%emt 0:00:02]} Bxe5 {[%emt 0:00:04]} 26. Qxe5 {[%emt 0:00:01]} Rc4 {[%emt 0:00:09]} 27. b3 {[%emt 0:00:04]} Rc6 {[%emt 0:00:21]} 28. Rxc6 {[%emt 0:00:11]} Qxc6 {[%emt 0:00:03]} 29. b4 {[%emt 0:00:12]} Qc2 {[%emt 0:00:12]} 30. Re1 {[%emt 0:00:04]} Rf8 {[%emt 0:00:02]} 31. f4 {[%emt 0:00:12]} Rc8 {[%emt 0:00:11]} 32. Bxd5 {[%emt 0:00:15]} exd5 {[%emt 0:00:15]} 33. Qxd5+ {[%emt 0:00:01]} Kh7 {[%emt 0:00:01]} 34. Qxd7 {[%emt 0:00:01]} Rc3 {[%emt 0:00:03]} 35. Qg4 {[%emt 0:00:07]} Qd3 {[%emt 0:00:11]} 36. Kh2 {[%emt 0:00:10]} Rxa3 {[%emt 0:00:11]} 37. f5 {[%emt 0:00:06]} Qd2+ {[%emt 0:00:09]} 38. Re2 {[%emt 0:00:04]} Qxb4 {[%emt 0:00:03]} 39. Qg6+ {[%emt 0:00:01]} Kg8 {[%emt 0:00:00]} 40. Re8+ {[%emt 0:00:01]} Qf8 {[%emt 0:00:01]} 41. Qe6+ {[%emt 0:00:00]} 1-0

[Event "RUS-ch Men Blitz 2019"]
[Site "Sochi"]
[Date "2019.10.17"]
[Round "9.22"]
[White "Vastrukhin, Oleg"]
[Black "Nuristani, Iman"]
[Result "1-0"]
[ECO "A08"]
[WhiteElo "2428"]
[BlackElo "2224"]
[Annotator "NA"]
[PlyCount "52"]
[EventDate "2019.10.17"]
[EventType "swiss"]
[EventCountry "RUS"]
[SourceTitle "playchess.com"]
[Source "ChessBase"]
[SourceQuality "1"]
[TimeControl "180+2"]

1. g3 {[%emt 0:00:00]} Nf6 {[%emt 0:00:02]} 2. Bg2 {[%emt 0:00:00]} e6 {[%emt 0:00:00]} 3. Nf3 {[%emt 0:00:04]} d5 {[%emt 0:00:16]} 4. O-O {[%emt 0:00:01]} Be7 {[%emt 0:00:01]} 5. d3 {[%emt 0:00:01]} O-O {[%emt 0:00:02]} 6. Nbd2 {[%emt 0:00:07]} c5 {[%emt 0:00:16]} 7. e4 {[%emt 0:00:00]} Nc6 {[%emt 0:00:01]} 8. Re1 {[%emt 0:00:02]} b5 {[%emt 0:00:07]} 9. e5 {[%emt 0:00:09]} Ne8 {[%emt 0:00:07]} 10. h4 {[%emt 0:00:03]} f6 {[%emt 0:00:14]} 11. exf6 {[%emt 0:00:03]} Bxf6 {[%emt 0:00:03]} 12. c4 {[%emt 0:00:24]} bxc4 {[%emt 0:00:06]} 13. dxc4 {[%emt 0:00:01]} Nc7 {[%emt 0:00:01]} 14. Nb3 {[%emt 0:00:14]} Na6 {[%emt 0:00:36]} 15. Ng5 {[%emt 0:00:04]} Nd4 {[%emt 0:01:03]} 16. Be3 {[%emt 0:00:03]} h6 {[%emt 0:00:13]} 17. Bxd4 {[%emt 0:00:10]} hxg5 {[%emt 0:00:00]} 18. Bxf6 {[%emt 0:00:55]} Qxf6 {[%emt 0:00:01]} 19. hxg5 {[%emt 0:00:00]} Qxf2+ {[%emt 0:00:12]} 20. Kh2 {[%emt 0:00:01]} Bb7 {[%emt 0:00:05]} 21. Rf1 {[%emt 0:00:05]} Qxb2 {[%emt 0:00:04]} 22. Rb1 {[%emt 0:00:07]} Qe5 {[%emt 0:00:04]} 23. Qh5 {[%emt 0:00:05]} Rf5 {[%emt 0:00:06]} 24. Rbe1 {[%emt 0:00:05]} Qc3 {[%emt 0:00:08]} 25. Rxf5 {[%emt 0:00:02]} exf5 {[%emt 0:00:02]} 26. Re7 {[%emt 0:00:02]} dxc4 {[%emt 0:00:02]} 1-0

[Event "RUS-ch Men Blitz 2019"]
[Site "Sochi"]
[Date "2019.10.17"]
[Round "9.23"]
[White "Gurvich, Vitaly"]
[Black "Belyakov, Bogdan"]
[Result "1/2-1/2"]
[ECO "C67"]
[WhiteElo "2278"]
[BlackElo "2495"]
[Annotator "ChessBase"]
[PlyCount "100"]
[EventDate "2019.10.17"]
[EventType "swiss"]
[EventCountry "RUS"]
[SourceTitle "playchess.com"]
[Source "ChessBase"]
[SourceQuality "1"]
[TimeControl "180+2"]

1. e4 {[%emt 0:00:00]} e5 {[%emt 0:00:00]} 2. Nf3 {[%emt 0:00:00]} Nc6 {[%emt 0:00:00]} 3. Bb5 {[%emt 0:00:03]} Nf6 {[%emt 0:00:01]} 4. O-O {[%emt 0:00:01]} Nxe4 {[%emt 0:00:01]} 5. d4 {[%emt 0:00:01]} Nd6 {[%emt 0:00:02]} 6. dxe5 {[%emt 0:00:01]} Nxb5 {[%emt 0:00:04]} 7. a4 {[%emt 0:00:00]} d6 {[%emt 0:00:05]} 8. e6 {[%emt 0:00:01]} fxe6 {[%emt 0:00:02]} 9. axb5 {[%emt 0:00:02]} Nb4 {[%emt 0:00:02]} 10. Ra4 {[%emt 0:00:12]} c5 {[%emt 0:00:08]} 11. bxc6 {[%emt 0:00:15]} Nxc6 {[%emt 0:00:01]} 12. Nc3 {[%emt 0:00:11]} Be7 {[%emt 0:00:03]} 13. Rg4 {[%emt 0:00:03]} O-O {[%emt 0:00:06]} 14. Bh6 {[%emt 0:00:05]} Rf7 {[%emt 0:00:02]} 15. Ne4 {[%emt 0:00:08]} e5 {[%emt 0:00:14]} 16. Rg3 {[%emt 0:00:03]} d5 {[%emt 0:01:02]} 17. Neg5 {[%emt 0:01:08]} Bxg5 {[%emt 0:00:03]} 18. Nxg5 {[%emt 0:00:10]} Rc7 {[%emt 0:00:03]} 19. Qh5 {[%emt 0:00:08]} Qf6 {[%emt 0:00:07]} 20. Qe8+ {[%emt 0:00:33]} Qf8 {[%emt 0:00:01]} 21. Qxf8+ {[%emt 0:00:01]} Kxf8 {[%emt 0:00:01]} 22. Nxh7+ {[%emt 0:00:01]} Ke8 {[%emt 0:00:25]} 23. Bxg7 {[%emt 0:00:07]} Kf7 {[%emt 0:00:01]} 24. Ng5+ {[%emt 0:00:06]} Ke7 {[%emt 0:00:03]} 25. Nf3 {[%emt 0:00:10]} e4 {[%emt 0:00:06]} 26. Nd4 {[%emt 0:00:05]} Be6 {[%emt 0:00:04]} 27. Nxc6+ {[%emt 0:00:05]} Rxc6 {[%emt 0:00:07]} 28. c3 {[%emt 0:00:01]} a5 {[%emt 0:00:02]} 29. Bd4 {[%emt 0:00:02]} b5 {[%emt 0:00:01]} 30. f3 {[%emt 0:00:03]} Rg8 {[%emt 0:00:04]} 31. fxe4 {[%emt 0:00:06]} Rxg3 {[%emt 0:00:02]} 32. exd5 {[%emt 0:00:06]} Rxg2+ {[%emt 0:00:09]} 33. Kxg2 Bxd5+ {[%emt 0:00:01]} 34. Kf2 {[%emt 0:00:02]} Rh6 {[%emt 0:00:04]} 35. Kg3 {[%emt 0:00:03]} Rg6+ {[%emt 0:00:00]} 36. Kf4 {[%emt 0:00:03]} Rg2 {[%emt 0:00:09]} 37. Rf2 {[%emt 0:00:01]} Rxf2+ {[%emt 0:00:01]} 38. Bxf2 {[%emt 0:00:01]} a4 {[%emt 0:00:05]} 39. h4 {[%emt 0:00:04]} Kf7 {[%emt 0:00:02]} 40. h5 {[%emt 0:00:02]} Kg7 {[%emt 0:00:01]} 41. Kg5 {[%emt 0:00:01]} Bc4 {[%emt 0:00:02]} 42. Bd4+ {[%emt 0:00:02]} Kh7 {[%emt 0:00:01]} 43. h6 {[%emt 0:00:03]} Bb3 {[%emt 0:00:01]} 44. Bg7 {[%emt 0:00:01]} Bc4 {[%emt 0:00:01]} 45. Kf6 {[%emt 0:00:01]} Bb3 {[%emt 0:00:02]} 46. Ke7 {[%emt 0:00:01]} Bc4 {[%emt 0:00:01]} 47. Kd6 {[%emt 0:00:01]} Bb3 {[%emt 0:00:01]} 48. Kc6 {[%emt 0:00:01]} Bc4 {[%emt 0:00:01]} 49. Kc5 {[%emt 0:00:00]} Kg6 {[%emt 0:00:01]} 50. Kb4 {[%emt 0:00:04]} Kh7 {[%emt 0:00:02]} 1/2-1/2